bitfinex/quotes_SOLUSD_20220114
["timestamp","ask_amount","ask_price","bid_price","bid_amount"]
[1642193880938,10.1915,147.22,147.14,15.93]
[1642193883544,9.58758463,147.22,147.14,15.93]
[1642193883745,23.08469022,147.23,147.14,15.93]
[1642193883944,26.05169022,147.23,147.14,26.1205]
[1642193884966,23.33469022,147.23,147.15,2.717]
[1642193885169,23.33469022,147.23,147.15,12.397]
[1642193885367,23.33469022,147.23,147.15,18.647]
[1642193885567,33.27569022,147.23,147.15,18.647]
[1642193885766,33.52569022,147.23,147.15,18.647]
[1642193885967,100.84569022,147.23,147.15,18.647]
[1642193886168,100.84569022,147.23,147.15,9.93]
[1642193887377,2.717,147.22,147.15,9.93]
[1642193887574,10.1928,147.21,147.15,9.93]
[1642193887775,67.32,147.2,147.15,9.93]
[1642193887977,94.0705,147.22,147.15,9.93]
[1642193889176,91.3535,147.22,147.15,9.93]
[1642193889475,10.193,147.2,147.15,9.93]
[1642193892280,104.2626,147.22,147.15,9.93]
[1642193896384,36.9426,147.22,147.15,9.93]
[1642193896587,26.5005,147.22,147.15,9.93]
[1642193896884,23.7835,147.22,147.15,15.93]
[1642193897084,23.08469022,147.23,147.16,2.717]
[1642193897285,23.08469022,147.23,147.16,8.793]
[1642193897486,23.08469022,147.23,147.16,25.2321]
[1642193897684,23.08469022,147.23,147.16,15.043]
[1642193898286,23.08469022,147.23,147.16,9.043]
[1642193898485,23.08469022,147.23,147.16,2.967]
[1642193898684,33.27549022,147.23,147.16,2.967]
[1642193899384,33.27549022,147.23,147.16,0.25]
[1642193899586,33.27549022,147.23,147.15,9.93]
[1642193899785,57.56579022,147.23,147.15,9.93]
[1642193900187,57.56579022,147.23,147.15,9.68]
[1642193900789,57.31579022,147.23,147.15,9.68]
[1642193900988,57.31579022,147.23,147.15,15.68]
[1642193901189,57.31579022,147.23,147.15,9.68]
[1642193901688,57.31579022,147.23,147.15,9.93]
[1642193902887,57.56579022,147.23,147.15,9.93]
[1642193903089,57.56579022,147.23,147.15,0.25]
[1642193903288,60.28279022,147.23,147.15,0.25]
[1642193903490,60.28279022,147.23,147.14,12.647]
[1642193903689,67.32,147.22,147.14,12.647]
[1642193903889,77.5121,147.22,147.14,12.647]
[1642193904288,10.1921,147.22,147.14,12.647]
[1642193904988,77.7621,147.22,147.14,9.93]
[1642193905590,77.7621,147.22,147.11,2.717]
[1642193905792,10.195,147.17,147.1,9.67128513]
[1642193905991,29.85528095,147.16,147.1,9.67128513]
[1642193906992,29.85528095,147.16,147.1,6.0]
[1642193907394,29.85528095,147.16,147.09,38.718]
[1642193907593,29.85528095,147.16,147.09,48.648]
[1642193912125,10.1943,147.18,147.09,48.648]
[1642193912327,23.302,147.17,147.09,58.8416]
[1642193913128,55.16478774,147.17,147.09,58.8416]
[1642193914930,55.16478774,147.17,147.09,59.1016]
[1642193918136,55.16478774,147.17,147.09,42.648]
[1642193918332,2.718,147.16,147.09,42.398]
[1642193918935,2.718,147.16,147.09,48.398]
[1642193919135,2.718,147.16,147.09,42.398]
[1642193919535,2.718,147.16,147.09,42.648]
[1642193919937,57.88278774,147.17,147.09,39.93]
[1642193921038,57.88278774,147.17,147.09,45.93]
[1642193921839,57.88278774,147.17,147.09,39.93]
[1642193922043,57.88278774,147.17,147.09,45.93]
[1642193926045,57.88278774,147.17,147.09,39.68]
[1642193926241,135.64778774,147.17,147.09,39.68]
[1642193926441,68.32778774,147.17,147.09,39.68]
[1642193927543,68.32778774,147.17,147.09,39.93]
[1642193927746,135.64778774,147.17,147.09,39.93]
[1642193928745,135.64778774,147.17,147.09,30.25]
[1642193930345,68.32778774,147.17,147.09,30.25]
[1642193930945,68.07778774,147.17,147.09,30.25]
[1642193931345,65.35978774,147.17,147.09,30.25]
[1642193932044,65.60978774,147.17,147.09,30.25]
[1642193932244,132.92978774,147.17,147.09,30.25]
[1642193932646,2.718,147.16,147.09,30.25]
[1642193932848,10.1969,147.15,147.09,30.25]
[1642193940455,83.5169,147.15,147.09,30.25]
[1642193940654,77.5169,147.15,147.09,30.25]
[1642193947088,83.5169,147.15,147.09,30.25]
[1642193951095,10.1969,147.15,147.09,30.25]
[1642193953701,78.1669,147.15,147.09,30.25]
[1642193956300,78.1669,147.15,147.09,30.0]
[1642193956700,78.4169,147.15,147.09,30.0]
[1642193957102,10.1982,147.13,147.09,30.0]
[1642193957301,2.718,147.14,147.09,30.0]
[1642193957302,28.77862938,147.11,147.09,30.0]
[1642193961411,29.02862938,147.11,147.09,30.0]
[1642193961611,28.77862938,147.11,147.09,30.0]
[1642193962018,45.22802938,147.11,147.03,2.718]
[1642193962217,25.3098,147.1,147.02,0.17005004]
[1642193962615,31.5598,147.1,147.02,0.17005004]
[1642193962815,45.0,147.09,147.01,3.34133517]
[1642193963056,23.26293914,147.08,147.0,3.69133517]
[1642193963416,39.71433914,147.08,147.0,3.69133517]
[1642193963615,39.71433914,147.08,147.0,9.69133517]
[1642193963916,39.71433914,147.08,147.0,3.69133517]
[1642193964116,39.71433914,147.08,147.0,5.85]
[1642193964323,39.71433914,147.08,146.99,31.821]
[1642193964718,33.71433914,147.08,146.99,41.501]
[1642193965118,33.46433914,147.08,146.99,41.501]
[1642193965318,33.71433914,147.08,146.99,41.761]
[1642193965518,67.97,147.07,146.99,18.399]
[1642193965717,67.97,147.07,146.99,8.719]
[1642193965917,34.0427068,147.05,146.99,8.969]
[1642193966119,23.8394068,147.05,146.99,6.25]
[1642193967421,12.9218,147.08,146.99,0.51]
[1642193967721,2.72,147.09,147.0,2.72]
[1642193967920,2.72,147.11,147.0,2.72]
[1642193968121,24.9355,147.1,147.0,9.23]
[1642193968322,25.92975016,147.09,147.0,9.23]
[1642193969331,25.92975016,147.09,147.0,8.97]
[1642193969523,38.85045016,147.09,147.0,2.97]
[1642193969730,23.183,147.08,147.0,2.97]
[1642193970424,23.183,147.08,147.0,8.97]
[1642193970654,23.183,147.08,147.0,2.97]
[1642193970855,23.183,147.08,147.0,8.97]
[1642193971758,23.183,147.08,147.0,2.97]
[1642193972260,25.903,147.08,147.0,0.25]
[1642193972457,26.153,147.08,146.99,29.8328]
[1642193972655,36.3544,147.08,146.99,29.8328]
[1642193973155,36.3544,147.08,146.99,29.5828]
[1642193973356,67.97,147.05,146.98,2.72]
[1642193973555,24.05854011,147.03,146.98,2.72]
[1642193973957,12.926,147.02,146.98,2.72]
[1642193974158,10.206,147.02,146.98,2.72]
[1642193974356,2.721,147.01,146.98,2.22]
[1642193974957,27.95743087,147.0,146.98,2.22]
[1642193975159,2.721,147.01,146.92,26.8681]
[1642193975358,24.5097,147.0,146.92,26.8681]
[1642193975559,25.6118,147.04,146.92,27.1181]
[1642193975760,24.868,147.03,146.92,27.1181]
[1642193976359,24.868,147.03,146.92,33.1181]
[1642193976759,26.33827671,147.04,146.92,33.1181]
[1642193976961,23.61727671,147.04,146.92,33.3781]
[1642193977361,23.61727671,147.04,146.92,43.5828]
[1642193978761,33.9748,147.06,146.92,43.5828]
[1642193978960,33.9748,147.06,146.92,50.1948]
[1642193979160,35.77025346,147.06,146.97,1.92250825]
[1642193979561,35.77025346,147.06,146.97,8.17250825]
[1642193979761,59.36337549,147.06,146.97,8.17250825]
[1642193979963,59.36337549,147.06,146.97,1.17250825]
[1642193980460,57.56792203,147.06,146.97,0.92250825]
[1642193980961,57.81792203,147.06,146.97,0.92250825]
[1642193981865,2.72,147.05,146.97,0.92250825]
[1642193982767,24.55447588,147.05,146.97,0.92250825]
[1642193983167,24.83426858,147.03,146.97,0.92250825]
[1642193983467,93.8269,147.02,146.97,0.92250825]
[1642193983668,93.8269,147.02,146.92,2.72]
[1642193983869,91.1059,147.02,146.93,3.88283512]
[1642193984068,93.8269,147.02,146.93,3.88283512]
[1642193984369,104.0323,147.02,146.93,3.88283512]
[1642193984668,104.0323,147.02,146.92,2.72]
[1642193984669,104.2823,147.02,146.92,2.72]
[1642193984868,104.2823,147.02,146.92,8.72]
[1642193985073,104.2823,147.02,146.92,8.97]
[1642193985572,104.2823,147.02,146.92,2.72]
[1642193985970,110.2823,147.02,146.91,23.9116]
[1642193987071,110.2823,147.02,146.91,24.1616]
[1642193987472,1.70077588,147.01,146.91,6.0]
[1642193987675,2.721,147.0,146.91,6.0]
[1642193987871,78.1788,146.98,146.89,8.721]
[1642193988071,23.1649,146.97,146.89,8.721]
[1642193988671,23.1649,146.97,146.9,3.88350094]
[1642193988872,124.64854039,146.97,146.9,3.88350094]
[1642193989574,124.64854039,146.97,146.89,2.721]
[1642193989974,124.89854039,146.97,146.89,2.721]
[1642193990176,124.89854039,146.97,146.89,2.971]
[1642193990674,2.722,146.96,146.86,521.82762483]
[1642193990876,10.2117,146.93,146.86,521.82762483]
[1642193991076,23.27757784,146.94,146.85,2.722]
[1642193991473,29.27757784,146.94,146.87,3.88417372]
[1642193991674,23.27757784,146.94,146.87,3.88417372]
[1642193991875,22.6678,146.95,146.87,3.88417372]
[1642193992077,32.8786,146.95,146.87,3.88417372]
[1642193992276,32.8786,146.95,146.86,3.88417372]
[1642193992476,32.8786,146.95,146.87,2.722]
[1642193992679,33.1286,146.95,146.86,3.88417372]
[1642193992976,91.8535399,146.94,146.86,3.88417372]
[1642193993176,10.2123,146.92,146.86,4.13417372]
[1642193993376,10.2123,146.92,146.88,3.88417372]
[1642193993578,23.8353,146.93,146.88,4.13417372]
[1642193993776,23.8353,146.93,146.88,3.88417372]
[1642193993979,26.8073,146.93,146.88,3.88417372]
[1642193994280,26.5573,146.93,146.88,3.88417372]
[1642193994479,26.8073,146.93,146.85,2.722]
[1642193994679,34.047,146.93,146.85,2.722]
[1642193994879,34.297,146.93,146.85,2.722]
[1642193995287,34.297,146.93,146.85,2.972]
[1642193995479,30.8707607,146.91,146.85,2.722]
[1642193995680,10.2146,146.89,146.85,2.722]
[1642193995880,32.82164065,146.88,146.85,2.722]
[1642193996080,40.77241653,146.88,146.85,2.722]
[1642193996281,74.83141653,146.88,146.85,2.722]
[1642193996480,81.0,146.87,146.82,5.77186574]
[1642193996679,81.0,146.87,146.77,374.48857669]
[1642193996680,26.23383566,146.85,146.78,5.77186574]
[1642193996883,80.9132,146.84,146.78,5.77186574]
[1642193997082,86.9132,146.84,146.78,5.77186574]
[1642193997482,108.9806852,146.82,146.72,0.84707727]
[1642193997684,80.375,146.81,146.71,6.3072209]
[1642193997984,67.97,146.78,146.71,6.3072209]
[1642193998184,2.725,146.77,146.71,6.3072209]
[1642193998384,2.725,146.77,146.67,2.725]
[1642193998385,67.97,146.75,146.67,2.725]
[1642193998785,90.6002,146.75,146.67,2.725]
[1642193999387,81.0,146.74,146.66,397.47793658]
[1642193999588,22.50580519,146.72,146.66,368.10293658]
[1642193999787,10.2291,146.7,146.68,3.88916728]
[1642194000987,42.3132171,146.7,146.68,3.88916728]
[1642194001187,10.4791,146.7,146.68,3.88916728]
[1642194001391,10.4791,146.7,146.62,3.88916728]
[1642194001591,10.2291,146.7,146.62,3.88916728]
[1642194001989,9.68,146.71,146.62,3.88916728]
[1642194002189,9.68,146.71,146.62,20.11606728]
[1642194002391,9.68,146.71,146.62,9.88916728]
[1642194002590,9.93,146.71,146.62,4.13916728]
[1642194002791,15.93,146.71,146.62,4.13916728]
[1642194003094,18.657,146.71,146.62,3.88916728]
[1642194003291,28.884,146.71,146.62,3.88916728]
[1642194003691,96.854,146.71,146.62,3.88916728]
[1642194004091,30.58477588,146.71,146.62,3.88916728]
[1642194004521,98.55477588,146.71,146.57,3.88916728]
[1642194005021,98.55477588,146.71,146.57,4.13916728]
[1642194005322,147.43047588,146.71,146.57,14.36966728]
[1642194005922,147.43047588,146.71,146.57,4.13916728]
[1642194006727,147.43047588,146.71,146.57,3.88916728]
[1642194007624,147.43047588,146.71,146.58,3.88916728]
[1642194008023,147.43047588,146.71,146.58,4.13916728]
[1642194009025,147.43047588,146.71,146.58,0.25]
[1642194009225,147.43047588,146.71,146.58,6.25]
[1642194009424,0.18602107,146.64,146.58,6.0]
[1642194009624,0.37204214,146.64,146.58,6.25]
[1642194009827,0.37204214,146.64,146.58,0.25]
[1642194010126,0.37204214,146.64,146.59,3.88916728]
[1642194010523,0.37204214,146.64,146.59,10.13916728]
[1642194011424,0.37204214,146.64,146.59,20.36886728]
[1642194012426,0.37204214,146.64,146.6,3.88916728]
[1642194012924,0.37204214,146.64,146.6,4.13916728]
[1642194013328,0.37204214,146.64,146.6,10.13916728]
[1642194013726,0.37204214,146.64,146.6,20.36816728]
[1642194014326,0.37204214,146.64,146.6,27.06316728]
[1642194014528,0.18602107,146.64,146.6,27.06316728]
[1642194014726,0.18602107,146.62,146.6,27.06316728]
[1642194014926,0.00602107,146.62,146.61,87.06439993]
[1642194015127,0.00602107,146.62,146.61,97.28989993]
[1642194015332,1.91904214,146.72,146.62,81.0]
[1642194015527,2.727,146.74,146.62,93.549]
[1642194015727,2.727,146.74,146.63,1.70077588]
[1642194015930,2.727,146.74,146.63,7.95077588]
[1642194016126,2.727,146.74,146.63,8.21077588]
[1642194016327,2.727,146.74,146.65,10.2243]
[1642194016529,6.0,146.75,146.65,16.4743]
[1642194016727,8.726,146.76,146.65,7.95077588]
[1642194016927,10.2243,146.75,146.65,1.95077588]
[1642194017128,2.726,146.74,146.65,0.25]
[1642194017528,8.726,146.74,146.65,0.25]
[1642194017727,25.74864129,146.73,146.63,4.13916728]
[1642194017927,2.727,146.72,146.63,4.13916728]
[1642194018129,2.727,146.72,146.63,0.25]
[1642194018529,2.727,146.72,146.63,10.2251]
[1642194018927,2.727,146.72,146.63,16.4751]
[1642194019728,2.727,146.72,146.64,3.89047377]
[1642194019931,2.727,146.74,146.65,9.68]
[1642194020129,2.726,146.75,146.65,9.68]
[1642194020329,6.0,146.75,146.65,16.19]
[1642194020530,8.726,146.76,146.65,16.19]
[1642194021034,8.726,146.76,146.66,10.2225]
[1642194021333,8.726,146.76,146.67,9.68]
[1642194021530,8.726,146.76,146.67,16.19]
[1642194021730,8.726,146.76,146.67,15.93]
[1642194021933,8.726,146.76,146.67,16.19]
[1642194022131,67.97,146.74,146.67,6.25]
[1642194022331,2.726,146.73,146.67,0.25]
[1642194022531,8.726,146.73,146.67,0.25]
[1642194022730,8.726,146.73,146.66,4.14047377]
[1642194022932,30.24527326,146.72,146.66,3.89047377]
[1642194023332,30.24527326,146.72,146.66,0.25]
[1642194024335,2.726,146.71,146.66,0.25]
[1642194024537,2.726,146.71,146.61,16.4762]
[1642194024733,2.726,146.71,146.61,26.1562]
[1642194024937,2.726,146.71,146.61,27.85697588]
[1642194025334,2.726,146.71,146.61,28.11697588]
[1642194026136,2.726,146.71,146.62,3.89055162]
[1642194026337,2.726,146.71,146.62,14.11665162]
[1642194026633,2.726,146.71,146.62,22.3274275]
[1642194027234,2.726,146.71,146.63,3.89055162]
[1642194027634,2.726,146.71,146.63,10.14055162]
[1642194029033,2.726,146.71,146.63,10.40055162]
[1642194029234,2.726,146.71,146.63,6.51]
[1642194029434,2.726,146.71,146.63,0.51]
[1642194029635,2.726,146.71,146.63,6.0]
[1642194029837,2.726,146.71,146.63,16.2254]
[1642194030037,2.727,146.73,146.63,16.7354]
[1642194030633,2.727,146.73,146.63,18.43617588]
[1642194031036,2.727,146.73,146.63,28.11617588]
[1642194031438,2.727,146.73,146.64,3.89034765]
[1642194031636,2.727,146.73,146.64,9.34034765]
[1642194031837,2.727,146.73,146.64,27.77492353]
[1642194032037,2.727,146.73,146.65,77.65]
[1642194032336,2.726,146.75,146.65,77.65]
[1642194032535,2.726,146.79,146.66,1.70077588]
[1642194032738,2.726,146.8,146.67,9.68]
[1642194032939,2.726,146.8,146.67,34.6113]
[1642194033138,2.726,146.8,146.68,1.70077588]
[1642194033541,2.726,146.8,146.68,8.21077588]
[1642194033943,2.726,146.8,146.69,11.38077588]
[1642194034244,2.726,146.8,146.69,9.68]
[1642194034444,2.726,146.8,146.7,1.70077588]
[1642194034843,2.726,146.8,146.7,8.21077588]
[1642194035243,2.726,146.8,146.71,1.70077588]
[1642194035446,51.1505045,146.81,146.71,7.95077588]
[1642194037043,51.1505045,146.81,146.71,15.62777588]
[1642194037244,2.725,146.81,146.71,25.30777588]
[1642194037445,2.725,146.83,146.71,25.56777588]
[1642194037645,2.225,146.83,146.71,25.56777588]
[1642194038273,37.19138,146.83,146.71,33.8256]
[1642194038473,37.19138,146.83,146.71,23.607]
[1642194038774,37.19138,146.83,146.71,23.357]
[1642194039074,128.30188,146.83,146.71,23.357]
[1642194039773,130.00265588,146.83,146.71,15.68]
[1642194039973,128.30188,146.83,146.71,15.68]
[1642194040182,128.30188,146.83,146.71,15.93]
[1642194040374,128.30188,146.83,146.71,16.19]
[1642194040776,128.30188,146.83,146.71,15.93]
[1642194040975,145.68265588,146.83,146.71,6.25]
[1642194041176,145.68265588,146.83,146.71,0.25]
[1642194041575,145.68265588,146.83,146.68,2.975]
[1642194041776,145.68265588,146.83,146.68,6.25]
[1642194042377,145.68265588,146.83,146.68,0.25]
[1642194042578,145.68265588,146.83,146.67,54.9594]
[1642194044583,145.68265588,146.83,146.67,55.2194]
[1642194044784,145.68265588,146.83,146.67,64.8994]
[1642194045281,145.43265588,146.83,146.67,64.8994]
[1642194045489,143.73188,146.83,146.67,64.8994]
[1642194046085,75.76188,146.83,146.67,64.8994]
[1642194046281,69.76188,146.83,146.67,64.8994]
[1642194046484,69.76188,146.83,146.68,3.88925984]
[1642194046683,69.76188,146.83,146.69,12.405]
[1642194047084,69.76188,146.83,146.69,18.915]
[1642194047282,60.08188,146.83,146.69,86.885]
[1642194047883,60.33188,146.83,146.69,86.885]
[1642194048285,60.33188,146.83,146.7,3.88925984]
[1642194048485,128.30188,146.83,146.71,2.725]
[1642194048887,128.30188,146.83,146.71,9.235]
[1642194049314,128.30188,146.83,146.71,8.975]
[1642194049487,134.30188,146.83,146.71,2.975]
[1642194050087,11.38077588,146.82,146.71,2.975]
[1642194050293,40.6039974,146.79,146.71,2.975]
[1642194051490,40.6039974,146.79,146.71,2.725]
[1642194051689,40.8539974,146.79,146.71,2.725]
[1642194051889,10.2229,146.77,146.71,2.725]
[1642194052089,23.3121354,146.76,146.68,2.725]
[1642194052292,23.3121354,146.76,146.66,2.726]
[1642194052491,23.3121354,146.76,146.68,2.726]
[1642194052690,23.3121354,146.76,146.67,2.726]
[1642194052889,23.3121354,146.76,146.66,2.976]
[1642194053089,23.3121354,146.76,146.66,8.976]
[1642194053891,23.3121354,146.76,146.66,9.236]
[1642194054690,68.7965,146.79,146.66,19.4578]
[1642194054893,66.0705,146.79,146.66,27.0218]
[1642194055091,72.0705,146.79,146.66,27.0218]
[1642194055692,25.95671269,146.78,146.66,27.0218]
[1642194055891,28.68271269,146.78,146.66,27.0218]
[1642194056092,28.68271269,146.78,146.67,3.88954425]
[1642194056293,25.95671269,146.78,146.68,2.726]
[1642194056492,25.95671269,146.78,146.68,9.236]
[1642194057120,25.95671269,146.78,146.68,8.976]
[1642194057322,51.85891269,146.78,146.68,2.976]
[1642194057525,2.726,146.77,146.68,0.25]
[1642194057722,27.3157,146.77,146.68,0.25]
[1642194057923,33.3157,146.77,146.66,10.13976666]
[1642194058123,33.3157,146.77,146.66,4.13976666]
[1642194058325,27.3157,146.77,146.66,10.13976666]
[1642194058523,27.3157,146.77,146.66,9.13976666]
[1642194058723,27.3157,146.77,146.66,6.51]
[1642194058922,27.3157,146.77,146.66,0.51]
[1642194059123,27.3157,146.77,146.66,6.51]
[1642194059324,37.5386,146.77,146.66,6.51]
[1642194059724,37.5386,146.77,146.66,0.51]
[1642194059925,37.5386,146.77,146.65,3.236]
[1642194060127,37.5386,146.77,146.65,8.976]
[1642194060325,37.5386,146.77,146.65,2.976]
[1642194060526,37.5386,146.77,146.65,8.976]
[1642194060826,37.5386,146.77,146.65,2.976]
[1642194061026,37.5386,146.77,146.65,8.976]
[1642194061027,37.7886,146.77,146.65,8.976]
[1642194061228,10.225,146.74,146.65,8.976]
[1642194061428,2.726,146.73,146.65,6.25]
[1642194061628,31.57523624,146.72,146.65,6.0]
[1642194061827,31.57523624,146.72,146.64,6.0]
[1642194062028,37.57523624,146.72,146.63,15.68]
[1642194062229,31.57523624,146.72,146.63,15.68]
[1642194063030,31.57523624,146.72,146.63,15.93]
[1642194063630,31.57523624,146.72,146.63,16.19]
[1642194064032,31.57523624,146.72,146.63,15.94]
[1642194065038,24.2777,146.73,146.63,15.94]
[1642194065238,24.2777,146.73,146.63,83.91]
[1642194065436,24.2777,146.73,146.63,84.16]
[1642194066036,24.2777,146.73,146.64,3.89029754]
[1642194066238,24.2777,146.73,146.64,13.57029754]
[1642194066436,24.2777,146.73,146.64,20.08029754]
[1642194066635,51.70242523,146.74,146.64,20.08029754]
[1642194066836,48.97642523,146.74,146.64,19.82029754]
[1642194067039,48.97642523,146.74,146.64,15.93]
[1642194067839,24.1147,146.74,146.64,28.8799]
[1642194068038,24.1147,146.74,146.64,15.93]
[1642194068336,24.1147,146.74,146.64,83.9]
[1642194068837,24.1147,146.74,146.64,84.16]
[1642194069336,2.726,146.77,146.65,3.88990037]
[1642194069539,90.017,146.78,146.66,9.68]
[1642194069738,49.6713,146.81,146.66,16.387]
[1642194069939,103.04240151,146.81,146.66,47.8709]
[1642194070239,78.62585026,146.81,146.67,67.97]
[1642194070441,78.62585026,146.81,146.68,2.725]
[1642194070839,78.62585026,146.81,146.68,9.235]
[1642194071241,131.99441754,146.81,146.68,9.235]
[1642194071440,142.21481754,146.81,146.68,9.235]
[1642194072443,113.26026728,146.81,146.68,9.235]
[1642194072640,27.36268244,146.8,146.68,9.235]
[1642194072841,2.725,146.79,146.68,9.235]
[1642194073043,24.1864,146.78,146.68,9.235]
[1642194074145,24.1864,146.78,146.68,8.975]
[1642194075576,24.1864,146.78,146.68,9.235]
[1642194076347,24.1864,146.78,146.68,77.205]
[1642194076546,31.89300648,146.77,146.68,71.205]
[1642194076747,31.89300648,146.77,146.68,3.235]
[1642194077147,31.89300648,146.77,146.68,2.975]
[1642194077347,31.89300648,146.77,146.68,2.725]
[1642194077747,34.61900648,146.77,146.67,12.406]
[1642194077949,34.61900648,146.77,146.67,18.406]
[1642194078150,34.61900648,146.77,146.67,12.406]
[1642194078548,34.61900648,146.77,146.67,12.656]
[1642194078750,23.2022,146.76,146.67,2.976]
[1642194078948,2.726,146.75,146.67,0.25]
[1642194079149,30.76301723,146.74,146.67,0.25]
[1642194079348,30.76301723,146.74,146.64,10.19239908]
[1642194079547,2.726,146.73,146.64,10.19239908]
[1642194079749,27.0457,146.73,146.64,10.19239908]
[1642194080855,24.3197,146.73,146.64,16.44239908]
[1642194081055,24.3197,146.73,146.64,26.92569908]
[1642194081957,24.3197,146.73,146.65,3.8899634]
[1642194082359,24.3197,146.73,146.65,10.3999634]
[1642194082758,24.3197,146.73,146.65,13.1259634]
[1642194083986,24.3197,146.73,146.65,9.236]
[1642194085287,24.3197,146.73,146.65,6.51]
[1642194085488,24.3197,146.73,146.65,0.51]
[1642194085687,24.3197,146.73,146.65,6.51]
[1642194085890,24.3197,146.73,146.65,6.0]
[1642194086187,24.3197,146.73,146.65,6.51]
[1642194086387,24.3197,146.73,146.65,0.51]
[1642194086586,24.3197,146.73,146.65,6.25]
[1642194086888,24.3197,146.73,146.65,16.733]
[1642194087486,24.3197,146.73,146.65,84.703]
[1642194087687,10.2232,146.77,146.66,2.726]
[1642194087888,26.9401,146.76,146.66,2.726]
[1642194088088,37.1635,146.76,146.66,9.236]
[1642194088287,37.1635,146.76,146.66,8.976]
[1642194088490,37.1635,146.76,146.66,6.25]
[1642194088787,37.1635,146.76,146.66,0.25]
[1642194089189,37.1635,146.76,146.64,19.16839908]
[1642194090890,37.1635,146.76,146.64,19.42839908]
[1642194092695,37.1635,146.76,146.64,29.65159908]
[1642194093993,37.1635,146.76,146.64,19.42839908]
[1642194096097,37.1635,146.76,146.64,19.16839908]
[1642194096594,37.1635,146.76,146.64,29.39179908]
[1642194096794,37.1635,146.76,146.64,97.36179908]
[1642194097494,37.1635,146.76,146.64,97.62179908]
[1642194099795,24.2141,146.76,146.64,97.62179908]
[1642194100002,24.2141,146.76,146.64,104.28279908]
[1642194100795,24.2141,146.76,146.67,1.94490156]
[1642194100996,24.2141,146.76,146.67,8.45490156]
[1642194101597,24.2141,146.76,146.7,0.51239908]
[1642194117845,26.9401,146.76,146.7,0.51239908]
[1642194119645,24.2141,146.76,146.7,0.51239908]
[1642194120745,1.7456988,146.77,146.7,0.51239908]
[1642194120945,1.7456988,146.78,146.7,10.19239908]
[1642194121148,1.7456988,146.78,146.71,67.97]
[1642194121346,1.7456988,146.78,146.72,9.68]
[1642194121554,1.7456988,146.78,146.72,24.821]
[1642194122145,1.7456988,146.79,146.72,24.821]
[1642194122346,1.7456988,146.79,146.72,92.791]
[1642194122748,1.7456988,146.79,146.72,24.821]
[1642194123247,1.7456988,146.82,146.72,36.98340156]
[1642194123648,1.7456988,146.82,146.73,2.725]
[1642194123846,1.7456988,146.82,146.74,9.68]
[1642194124050,1.7456988,146.82,146.75,2.725]
[1642194124247,1.7456988,146.82,146.75,17.938]
[1642194124447,1.7456988,146.82,146.76,10.2146]
[1642194124646,1.7456988,146.83,146.77,12.404]
[1642194124846,1.7456988,146.83,146.77,9.68]
[1642194125048,1.7456988,146.83,146.77,16.19]
[1642194126151,1.7456988,146.83,146.77,15.93]
[1642194126452,2.724,146.82,146.77,6.25]
[1642194126853,4.4696988,146.85,146.77,0.25]
[1642194127051,4.4696988,146.85,146.77,6.0]
[1642194127452,4.4696988,146.85,146.77,76.486]
[1642194127653,1.7456988,146.83,146.77,76.486]
[1642194127853,1.7456988,146.83,146.77,82.746]
[1642194128254,1.2456988,146.83,146.78,9.68]
[1642194128453,1.2456988,146.83,146.78,16.19]